[Event "44th Chess Olympiad Women 2022"]
[Site "Chennai"]
[Date "2022.07.29"]
[Round "1.35"]
[White "Zhang, Jilin"]
[Black "da Silva, Sonizia A.Tilman"]
[Result "1-0"]
[ECO "C45"]
[WhiteElo "2212"]
[BlackElo "1507"]
[Annotator "TA"]
[PlyCount "99"]
[EventDate "2022.07.29"]
[EventType "team-tourn"]
[EventCountry "IND"]
[SourceTitle "playchess.com"]
[Source "ChessBase"]
[SourceQuality "1"]
[WhiteTeam "Australia"]
[BlackTeam "TLS"]
[WhiteTeamCountry "AUS"]
[TimeControl "40/5400+30:1800+30"]

{[%evp 12,98,192,123,122,48,57,31,81,79,100,87,89,103,89,39,126,84,87,91,305,316,299,77,75,92,87,39,43,36,58,57,66,71,565,116,181,187,422,409,391,236,347,355,348,325,314,319,323,332,331,332,629,658,645,631,623,617,601,609,963,951,1708,1717,2330,3287,29977,29979,29980,29980,29986,29985,29985,29986,29991,29992,29992,29993,29993,29994,29994,29994,29995,29996,29996,29997,29998,29999,29999]} 1. e4 {[%emt 0:00:03]} Nc6 {[%emt 0:00:04]} 2. Nf3 {[%emt 0:00:41]} e5 {[%emt 0:00:29]} 3. d4 {[%emt 0:00:53]} exd4 {[%emt 0:01:55]} 4. Nxd4 {[%emt 0:00:06]} Nxd4 {[%emt 0:01:54]} 5. Qxd4 {[%emt 0:00:07]} b6 {[%emt 0:00:38]} 6. Nc3 {[%emt 0:02:45]} Nf6 {[%emt 0:01:04] [#]} 7. Bg5 {[%emt 0:08:31]} ({White should play} 7. e5 $1 $18 {[%cal Re5f6]} Ng8 8. Bc4) 7... Bc5 $16 {[%emt 0:02:20] C45: Scotch Game.} 8. Qd2 {[%emt 0:03:30]} (8. Qe5+ $16 Be7 9. Bxf6 gxf6 10. Qg3) 8... h6 $14 {[%emt 0:01:40] [#]} 9. Be3 $146 {[%emt 0:03:49]} ({Predecessor:} 9. Bh4 d6 10. Bb5+ Bd7 11. Bxd7+ Qxd7 12. Bxf6 gxf6 13. Nd5 Qd8 14. O-O-O c6 15. Nf4 {0-1 (25) Niazi,S (1118)-Shabani,M Chess.com INT 2021}) 9... Bb4 {[%emt 0:01:04]} (9... Qe7 $14) 10. f3 $16 {[%emt 0:02:39]} Qe7 {[%emt 0:00:50]} 11. a3 {[%emt 0:02:29]} Bd6 {[%emt 0:01:55]} 12. O-O-O {[%emt 0:08:47]} Bb7 {[%emt 0:01:25]} 13. g4 {[%emt 0:03:32]} (13. Nb5 $16) 13... Bc6 {[%emt 0:01:37]} (13... Be5 $14) 14. Nb5 {[%emt 0:06:43][%cal Rb5d6,Bc3b5,Bb5d4,Bd4f5][%mdl 32]} Be5 {[%emt 0:02:11]} 15. Nd4 {[%emt 0:00:44] Threatens to win with Nf5.} Bb7 $2 {[%emt 0:02:22]} (15... O-O-O $16) 16. Nf5 $1 $18 {[%emt 0:03:52][%csl LRe7,LRg7]} Qf8 {[%emt 0:00:48]} 17. Bd4 $2 {[%emt 0:06:05]} (17. f4 $18 {and White stays clearly on top.} O-O-O 18. fxe5 Nxe4 19. Qe1) 17... Bxd4 $16 {[%emt 0:00:52]} 18. Qxd4 {[%emt 0:00:09] [#] Strongly threatening e5.} O-O-O {[%emt 0:00:35]} 19. Qa4 {[%emt 0:00:58]} ({White should try} 19. Bc4 $16) 19... Kb8 $14 {[%emt 0:00:42]} 20. Ba6 {[%emt 0:00:45]} Bc6 {[%emt 0:01:15]} 21. Qc4 $36 {[%emt 0:02:22][%mdl 2048] White is pushing.} g6 {[%emt 0:00:54]} 22. Nd4 {[%emt 0:01:11] White is much more active. The black rooks are badly placed.} Qd6 {[%emt 0:01:35][%mdl 8192]} (22... Ba8 $16) 23. Kb1 $2 {[%emt 0:03:49]} (23. e5 $18 {and the rest is easy.} Bd5 24. exd6 Bxc4 25. dxc7+ Kxc7 26. Bxc4) 23... Nh7 {[%emt 0:03:16]} (23... Ba8 $16) 24. h4 $18 {[%emt 0:04:47]} ({Don't play} 24. Qxf7 Ng5 25. Qc4 Ne6 $16) 24... f5 $2 {[%emt 0:01:15]} (24... Ba8 25. Qxf7 Rdf8) 25. gxf5 {[%emt 0:03:58]} gxf5 {[%emt 0:00:50]} 26. Nxf5 {[%emt 0:00:28]} Qe6 {[%emt 0:01:25]} (26... Qc5 $142 27. Nxh6 Qxc4 28. Bxc4 Rde8) 27. Qxe6 {[%emt 0:05:31]} dxe6 {[%emt 0:00:25]} 28. Nxh6 {[%emt 0:00:16] Black must now prevent Nf7.} Rdf8 {[%emt 0:01:06]} 29. Ng4 {[%emt 0:05:44]} Bb7 {[%emt 0:01:21]} 30. Bxb7 {[%emt 0:00:37]} Kxb7 {[%emt 0:00:17]} 31. Ne5 {[%emt 0:00:02] And now Ng6 would win.} Nf6 $2 {[%emt 0:00:57]} (31... Rf6 32. Ka2 Kc8) 32. Ng6 {[%emt 0:00:07][%csl LRf8,LRh8]} Nh5 {[%emt 0:03:20]} 33. Nxh8 {[%emt 0:00:25]} Rxh8 {[%emt 0:00:10][%mdl 4096] Endgame KRR-KRN} 34. Rdg1 {[%emt 0:00:15]} Rf8 {[%emt 0:00:21]} 35. Rg5 {[%emt 0:00:16]} Nf4 {[%emt 0:00:51]} 36. h5 {[%emt 0:00:11]} Rh8 {[%emt 0:01:46]} 37. h6 {[%emt 0:00:10]} e5 {[%emt 0:00:37]} 38. h7 {[%emt 0:00:08]} Rxh7 {[%emt 0:02:20]} 39. Rxh7 {[%emt 0:02:27] White mates.} a5 {[%emt 0:02:22]} 40. Rxe5 {[%emt 0:00:00]} Ng6 {[%emt 0:00:17]} 41. Rg5 {[%emt 0:28:08]} Nf4 {[%emt 0:30:27]} 42. Rgg7 {[%emt 0:00:11]} Ne6 {[%emt 0:00:49]} 43. Re7 {[%emt 0:00:08]} Ng5 {[%emt 0:01:03]} 44. Rxc7+ {[%emt 0:00:18]} Kb8 {[%emt 0:00:16]} 45. Rb7+ {[%emt 0:00:07]} Kc8 {[%emt 0:00:36]} 46. Rhc7+ {[%emt 0:00:09]} Kd8 {[%emt 0:00:14]} 47. Rg7 {[%emt 0:00:13][%cal Rb7b8]} Kc8 {[%emt 0:00:26]} 48. Rbe7 {[%emt 0:00:09][%cal Rg7g8]} Kd8 {[%emt 0:00:44]} 49. Ra7 {[%emt 0:00:08][%cal Rg7g8]} Nf7 {[%emt 0:01:53]} 50. Rg8# {[%emt 0:00:13] Weighted Error Value: White=0.63/Black=0.74} 1-0

[Event "44th Chess Olympiad Women 2022"]
[Site "Chennai"]
[Date "2022.07.29"]
[Round "1.35"]
[White "Phan, Nguyen Mai Chi"]
[Black "dos Santos, Elfiana"]
[Result "1-0"]
[ECO "D05"]
[WhiteElo "2139"]
[BlackElo "1560"]
[Annotator "TA"]
[PlyCount "71"]
[EventDate "2022.07.29"]
[EventType "team-tourn"]
[EventCountry "IND"]
[SourceTitle "playchess.com"]
[Source "ChessBase"]
[SourceQuality "1"]
[WhiteTeam "Australia"]
[BlackTeam "TLS"]
[WhiteTeamCountry "AUS"]
[TimeControl "40/5400+30:1800+30"]

{[%evp 9,71,11,52,44,90,57,82,73,90,41,64,68,104,75,95,107,91,92,189,187,170,175,206,139,400,396,404,397,422,427,879,626,625,628,764,758,975,939,938,920,1108,1094,1078,1075,1584,1379,1933,2024,1901,1721,1602,1625,1291,1182,1120,1088,2245,1974,2555,2311,6311,4227,29978,29977]} 1. d4 {[%emt 0:00:05]} d5 {[%emt 0:00:15]} 2. Nf3 {[%emt 0:00:08]} Nf6 {[%emt 0:00:23]} 3. e3 {[%emt 0:00:50]} e6 {[%emt 0:00:23]} 4. Bd3 {[%emt 0:00:18]} Be7 {[%emt 0:00:53]} 5. Nbd2 {[%emt 0:00:51]} Nc6 {[%emt 0:01:00]} 6. a3 {[%emt 0:00:42] D05: Colle System with ...e6.} Bd7 {[%emt 0:01:51]} (6... a5 $14) 7. b3 {[%emt 0:01:56]} O-O {[%emt 0:00:54]} 8. Bb2 {[%emt 0:01:15] White is better.} b6 {[%emt 0:02:04] [#]} 9. h4 $146 {[%emt 0:04:19]} ({Better is} 9. c4 $16) ({Predecessor:} 9. O-O a6 10. Ne5 Qc8 11. f4 Bd6 12. Qf3 Bxe5 13. fxe5 Ne8 14. Qh5 h6 15. Qf3 {1-0 (62) Balan,D-Olteanu,S Chess.com INT 2020}) 9... a6 {[%emt 0:03:49]} 10. Qe2 {[%emt 0:03:22]} Nb8 {[%emt 0:02:45]} 11. Ne5 {[%emt 0:05:57]} Bb5 {[%emt 0:02:14]} 12. c4 {[%emt 0:02:24] White is more active.} dxc4 {[%emt 0:02:07]} 13. bxc4 {[%emt 0:00:09]} Bc6 {[%emt 0:01:25]} (13... Ba4 $16) 14. Nxc6 $18 {[%emt 0:04:13]} Nxc6 {[%emt 0:00:48] [#]} 15. g4 $1 {[%emt 0:03:27]} Ne8 {[%emt 0:05:55]} 16. Be4 {[%emt 0:02:03]} Qd7 {[%emt 0:01:54][%mdl 8192] This costs Black the game.} (16... Na5 $16 {was called for.} 17. Bxa8 Qxa8) 17. Qf3 {[%emt 0:00:56]} Nxd4 {[%emt 0:04:02]} 18. exd4 {[%emt 0:08:00]} ({Don't do} 18. Bxd4 Rd8 19. Bc6 Qc8 $18) 18... Rd8 {[%emt 0:01:19]} 19. Bc6 {[%emt 0:02:01]} Qd6 {[%emt 0:02:50] [#]} (19... Qc8 $142 20. Kf1 b5) 20. Ne4 $1 {[%emt 0:00:47]} Qxc6 {[%emt 0:03:09] [#]} 21. Nf6+ $1 {[%emt 0:02:30][%mdl 576] Discovered Attack} Bxf6 {[%emt 0:00:59]} (21... Nxf6 22. Qxc6) 22. Qxc6 {[%emt 0:00:11]} Bxd4 {[%emt 0:01:30]} 23. Bxd4 {[%emt 0:01:04]} Rxd4 {[%emt 0:00:24]} 24. Rd1 {[%emt 0:00:23]} Rxg4 {[%emt 0:01:33]} 25. Rd8 {[%emt 0:00:12] White threatens Qxe8 and mate.} Nf6 {[%emt 0:05:25]} 26. Qxc7 {[%emt 0:02:23]} g6 {[%emt 0:01:32]} 27. Rh3 {[%emt 0:03:08] Intending Rf3 and mate.} Rxd8 {[%emt 0:01:59]} 28. Qxd8+ {[%emt 0:00:07]} Kg7 {[%emt 0:00:14]} 29. Rf3 {[%emt 0:00:42]} Re4+ {[%emt 0:01:30]} 30. Kd1 {[%emt 0:04:12]} Ng4 {[%emt 0:01:49]} 31. Qc7 {[%emt 0:01:34]} Ne5 {[%emt 0:01:21]} 32. Re3 {[%emt 0:00:29]} Rxe3 {[%emt 0:04:43]} 33. fxe3 {[%emt 0:00:15]} Nd3 {[%emt 0:01:15]} 34. Kd2 {[%emt 0:00:29]} Nb2 {[%emt 0:00:24]} 35. Qc6 {[%emt 0:00:37]} Nxc4+ {[%emt 0:01:43]} 36. Qxc4 {[%emt 0:00:05] Weighted Error Value: White=0.30/Black=0.53} 1-0

[Event "44th Chess Olympiad Women 2022"]
[Site "Chennai"]
[Date "2022.07.29"]
[Round "1.35"]
[White "Gusmao, Maria do Ceu"]
[Black "Richards, Heather S"]
[Result "0-1"]
[ECO "A21"]
[WhiteElo "1442"]
[BlackElo "2146"]
[Annotator "TA"]
[PlyCount "71"]
[EventDate "2022.07.29"]
[EventType "team-tourn"]
[EventCountry "IND"]
[SourceTitle "playchess.com"]
[Source "ChessBase"]
[SourceQuality "1"]
[WhiteTeam "TLS"]
[BlackTeam "Australia"]
[BlackTeamCountry "AUS"]
[TimeControl "40/5400+30:1800+30"]

{[%evp 9,71,0,0,-10,-7,-18,-6,-40,-20,-39,-11,-78,-56,-50,-44,-66,-66,-125,-93,-323,-312,-312,-318,-319,-318,-392,-360,-358,-320,-307,-272,-450,-472,-484,-320,-493,-490,-1172,-1157,-1224,-1180,-1935,-1931,-1861,-1721,-3292,-2893,-29988,-9047,-29968,-29969,-29969,-29970,-29970,-29971,-2030,-2189,-29990,-29990,-29992,-29993,-29993,-29993,-29993]} 1. c4 {[%emt 0:00:02]} d6 {[%emt 0:00:10]} 2. Nc3 {[%emt 0:00:20]} e5 {[%emt 0:00:17]} 3. a3 {[%emt 0:00:50]} f5 {[%emt 0:00:18]} 4. e3 {[%emt 0:01:09]} Nf6 {[%emt 0:00:20]} 5. d3 {[%emt 0:01:33] [#]} c6 $146 {[%emt 0:02:25]} ({Predecessor:} 5... Be6 6. Nf3 c6 7. Be2 Be7 8. O-O O-O 9. Qc2 h6 10. b4 Nbd7 11. Rb1 g5 {0-1 (28) Vukusic,M (2121)-Blazeka,M (2013) Zagreb 2009}) 6. b3 {[%emt 0:02:35] A21: English Opening: 1...e5 2 Nc3.} g6 {[%emt 0:00:27]} 7. h3 {[%emt 0:01:28]} Bg7 {[%emt 0:00:06]} 8. Rb1 {[%emt 0:00:25] The position is equal.} O-O {[%emt 0:00:07]} 9. Bb2 {[%emt 0:02:12]} Nbd7 {[%emt 0:01:40]} 10. h4 {[%emt 0:05:01]} (10. Be2 $11 {keeps the balance.}) 10... Nc5 {[%emt 0:02:43]} 11. Be2 {[%emt 0:04:09]} h6 {[%emt 0:25:58]} 12. b4 {[%emt 0:00:49]} Ne6 {[%emt 0:00:08] Black is more active.} 13. Nh3 {[%emt 0:09:46]} ({White should play} 13. Rc1 $15) 13... a5 {[%emt 0:02:42]} 14. f4 $2 {[%emt 0:02:24] This move loses the game for White.} (14. b5 $17 {keeps fighting.}) 14... axb4 {[%emt 0:01:09]} 15. axb4 {[%emt 0:00:48] [#]} Ng4 $1 {[%emt 0:03:51]} 16. g3 {[%emt 0:08:00]} Nxe3 {[%emt 0:00:35]} 17. Qc1 {[%emt 0:01:59]} exf4 {[%emt 0:03:22]} 18. Nxf4 {[%emt 0:02:14]} Nxf4 {[%emt 0:00:09]} 19. gxf4 {[%emt 0:00:42]} Re8 {[%emt 0:03:36] And now ...Qb6 would win.} 20. Kf2 $2 {[%emt 0:07:44]} (20. Nd1 Ng2+ 21. Kf2) 20... d5 $19 {[%emt 0:04:47]} 21. Nd1 {[%emt 0:06:34]} d4 {[%emt 0:05:19]} 22. Rh3 {[%emt 0:04:33]} (22. Nxe3 $142 Rxe3 23. Qf1) 22... Qd6 {[%emt 0:02:11][%csl LRb4,LRf4]} 23. Kg3 {[%emt 0:04:12]} (23. Kg1 $142 Ng2 24. Kxg2 Rxe2+ 25. Nf2) 23... g5 {[%emt 0:02:34]} 24. hxg5 {[%emt 0:05:00]} hxg5 {[%emt 0:00:05][%csl Gg5][%cal Rd6f4,Bh6g5,Bg5g4][%mdl 32] [#]} 25. Kf2 {[%emt 0:01:07]} Qxf4+ {[%emt 0:00:07]} 26. Kg1 {[%emt 0:01:53]} g4 {[%emt 0:01:06]} 27. Rxe3 {[%emt 0:04:37]} dxe3 {[%emt 0:01:15]} 28. Bxg7 {[%emt 0:03:44]} Kxg7 {[%emt 0:00:05]} (28... Qg3+ $142 29. Kf1 Qh3+ 30. Ke1 Qh1+ 31. Bf1 e2 32. Bb2 exf1=N+ 33. Qe3 Nxe3+ 34. Kd2 Qg2+ 35. Nf2 Qxf2+ 36. Kc3 Qc2+ 37. Kd4 b6 38. Bc3 Re4+ 39. dxe4 Qxe4#) 29. Kg2 {[%emt 0:01:45]} Rh8 {[%emt 0:02:03][%cal Be8h8,Bh8h2,Bh2e2][%mdl 32]} 30. Qxe3 {[%emt 0:01:16]} Rh2+ {[%emt 0:00:35]} 31. Kg1 {[%emt 0:02:26]} Qxe3+ {[%emt 0:00:00]} 32. Nxe3 {[%emt 0:01:04]} Rxe2 {[%emt 0:00:02]} 33. Nf1 {[%emt 0:00:39]} Raa2 {[%emt 0:00:09] Black mates.} 34. Rd1 {[%emt 0:02:19]} f4 {[%emt 0:00:05]} 35. Kh1 {[%emt 0:00:02]} Kg6 36. Kg1 {Weighted Error Value: White=1.45/Black=0.13 (very precise)} 0-1

[Event "44th Chess Olympiad Women 2022"]
[Site "Chennai"]
[Date "2022.07.29"]
[Round "1.35"]
[White "Tilman, Zulmira Americo"]
[Black "Ryjanova, Julia"]
[Result "0-1"]
[ECO "E52"]
[WhiteElo "1255"]
[BlackElo "2284"]
[Annotator "TA"]
[PlyCount "88"]
[EventDate "2022.07.29"]
[EventType "team-tourn"]
[EventCountry "IND"]
[SourceTitle "playchess.com"]
[Source "ChessBase"]
[SourceQuality "1"]
[WhiteTeam "TLS"]
[BlackTeam "Australia"]
[BlackTeamCountry "AUS"]
[TimeControl "40/5400+30:1800+30"]

{[%evp 19,87,-8,-2,-8,-8,-275,-262,-346,-366,-360,-352,-391,-377,-393,-318,-439,-445,-416,-359,-605,-605,-616,-614,-609,-589,-689,-644,-743,-735,-879,-942,-931,-921,-949,-940,-1033,-1019,-1015,-1000,-1176,-1164,-1270,-1229,-3195,-2872,-6127,-5727,-29983,-29984,-29984,-29985,-29985,-29986,-29986,-29987,-29987,-29988,-29990,-29991,-29992,-29991,-29991,-29992,-29992,-29993,-29997,-29998,-29998,-29999,-29999]} 1. d4 {[%emt 0:00:07]} Nf6 {[%emt 0:04:38]} 2. c4 {[%emt 0:00:35]} e6 {[%emt 0:00:16]} 3. Nc3 {[%emt 0:00:47]} Bb4 {[%emt 0:00:20]} 4. Bd2 {[%emt 0:00:56]} b6 {[%emt 0:07:58]} 5. e3 {[%emt 0:02:59]} Bb7 {[%emt 0:01:53]} 6. Nf3 {[%emt 0:00:28]} O-O {[%emt 0:01:31]} 7. Bd3 {[%emt 0:01:44]} d5 {[%emt 0:03:18]} 8. O-O {[%emt 0:01:24]} c5 {[%emt 0:04:52]} 9. cxd5 {[%emt 0:05:26] The main line 9.cxd5 scores better than 9.a3.} exd5 {[%emt 0:01:06]} 10. Qc2 {[%emt 0:05:45]} Nbd7 {[%emt 0:12:06]} 11. Ng5 {[%emt 0:04:58][%cal Rd3h7] E52: Nimzo-Indian: Rubinstein: 4...0-0 5 Nf3 d5 6 Bd3 b6.} h6 {[%emt 0:06:57] [#]} 12. Bh7+ $146 {[%emt 0:00:28][%mdl 8192] [#]} (12. Nf3 $11 {and White has nothing to worry.}) ({Predecessor:} 12. Nf3 Rc8 13. Bf5 Re8 14. Rac1 Ne4 15. Qb3 a5 16. Rfd1 c4 17. Qc2 Nd6 18. Bh3 b5 {0-1 (61) Meiners,E (2183)-Sawaski,J (2002) ICCF email 2010}) 12... Kh8 $19 {[%emt 0:00:16]} 13. Bd3 {[%emt 0:16:45] Black has a decisive advantage.} hxg5 {[%emt 0:00:50]} 14. h3 {[%emt 0:03:09]} Qe7 {[%emt 0:02:38]} 15. f4 {[%emt 0:03:12]} Ne4 {[%emt 0:13:02]} 16. Qd1 {[%emt 0:05:35]} g6 {[%emt 0:02:03]} 17. a3 {[%emt 0:05:42]} Bxc3 {[%emt 0:00:36]} 18. bxc3 {[%emt 0:00:30]} Rae8 {[%emt 0:03:34]} 19. Ra2 $2 {[%emt 0:01:51] [#]} (19. Bxe4 dxe4 20. fxg5) 19... Nxd2 {[%emt 0:04:13]} 20. Rxd2 {[%emt 0:00:27]} c4 {[%emt 0:00:58]} 21. Bc2 {[%emt 0:00:37]} Qxe3+ {[%emt 0:00:12]} 22. Kh1 {[%emt 0:04:54]} gxf4 {[%emt 0:06:36] aiming for ...Nf6.} 23. Rf3 {[%emt 0:01:20]} Qe1+ {[%emt 0:00:14]} 24. Qxe1 {[%emt 0:00:20]} Rxe1+ {[%emt 0:00:05]} 25. Kh2 {[%emt 0:00:52]} Nf6 {[%emt 0:02:40]} 26. Rxf4 {[%emt 0:01:02]} Ne4 {[%emt 0:00:23]} 27. Rd1 {[%emt 0:03:25]} Rxd1 {[%emt 0:00:21]} 28. Bxd1 {[%emt 0:00:37]} Nxc3 {[%emt 0:00:19]} 29. Bc2 {[%emt 0:00:59]} Kg7 {[%emt 0:00:20]} 30. Rf3 {[%emt 0:02:16]} Ne2 {[%emt 0:00:48]} 31. a4 {[%emt 0:00:55]} Nxd4 {[%emt 0:00:11]} 32. Rf2 {[%emt 0:01:12]} Nxc2 {[%emt 0:00:06]} 33. Rxc2 {[%emt 0:00:39][%mdl 4096] Endgame KRB-KR} Rc8 {[%emt 0:00:07] Black mates.} 34. Kg1 {[%emt 0:00:22]} d4 {[%emt 0:00:16]} 35. Kf1 {[%emt 0:00:40]} c3 {[%emt 0:00:21]} 36. Ke2 {[%emt 0:00:48]} Be4 {[%emt 0:00:37]} 37. Rc1 {[%emt 0:00:28]} d3+ {[%emt 0:00:13]} 38. Ke3 {[%emt 0:00:20]} d2 {[%emt 0:00:15]} 39. Ra1 {[%emt 0:00:59]} Bc2 {[%emt 0:00:53]} 40. Ke2 {[%emt 0:01:03]} Re8+ {[%emt 0:00:13]} 41. Kf2 {[%emt 0:30:48]} d1=Q {[%emt 0:30:22]} 42. Ra3 {[%emt 0:01:53]} Qe1+ {[%emt 0:00:33]} 43. Kf3 {[%emt 0:00:22]} Qe3+ {[%emt 0:00:14]} 44. Kg4 {[%emt 0:00:51]} Re4# {[%emt 0:00:05] White got outplayed after the opening.  Weighted Error Value: White=1.05/Black=0.11 (very precise)} 0-1

[Event "44th Chess Olympiad Women 2022"]
[Site "Chennai"]
[Date "2022.07.29"]
[Round "1.36"]
[White "Alboredo, Julia"]
[Black "Ben Said, Safa"]
[Result "1-0"]
[ECO "C11"]
[WhiteElo "2264"]
[BlackElo "1564"]
[Annotator "TA"]
[PlyCount "51"]
[EventDate "2022.07.29"]
[EventType "team-tourn"]
[EventCountry "IND"]
[SourceTitle "playchess.com"]
[Source "ChessBase"]
[SourceQuality "1"]
[WhiteTeam "Brazil"]
[BlackTeam "Tunisia"]
[WhiteTeamCountry "BRA"]
[BlackTeamCountry "TUN"]
[TimeControl "40/5400+30:1800+30"]

{[%evp 16,51,35,27,50,47,37,37,27,11,50,26,37,20,57,61,81,83,141,140,242,239,476,467,1206,1177,1378,1346,1483,1452,2059,2092,2935,3025,2943,2725,29991,29992]} 1. e4 {[%emt 0:00:04]} e6 {[%emt 0:00:15]} 2. d4 {[%emt 0:00:15]} d5 {[%emt 0:00:10]} 3. Nc3 {[%emt 0:00:16]} Nf6 {[%emt 0:01:14]} 4. e5 {[%emt 0:00:13]} Nfd7 {[%emt 0:00:07]} 5. f4 {[%emt 0:00:16]} c5 {[%emt 0:00:30]} 6. Nf3 {[%emt 0:00:16]} Nc6 {[%emt 0:00:47]} 7. Be3 {[%emt 0:00:21]} cxd4 {[%emt 0:01:50]} 8. Nxd4 {[%emt 0:00:17]} Nxd4 {[%emt 0:01:00]} 9. Bxd4 {[%emt 0:00:11]} Bb4 {[%emt 0:04:09] C11: French: Classical System: 4 e5 and 4 Bg5 dxe4.} 10. Qg4 {[%emt 0:02:56]} O-O {[%emt 0:03:40]} 11. O-O-O {[%emt 0:02:30]} Bc5 {[%emt 0:11:01] White is slightly better.} 12. h4 {[%emt 0:10:49] [#]} Qe7 $146 {[%emt 0:05:36]} ({Predecessor:} 12... Bxd4 13. Rxd4 f5 14. Qf3 Qb6 15. Rd2 Nc5 16. g4 Ne4 17. Rg2 Nxc3 18. Qxc3 Rf7 {1-0 (29) Umanec,F (2175)-Vojta,P (2173) Ricany 2009}) 13. h5 {[%emt 0:02:58]} Bxd4 {[%emt 0:01:27]} 14. Rxd4 {[%emt 0:07:48]} f6 {[%emt 0:00:43]} 15. exf6 {[%emt 0:09:02]} (15. h6 $5 {[%cal Rh6g7]} g6 16. exf6 Qxf6 17. Qd1 $14) 15... Qxf6 {[%emt 0:00:51] [#]} 16. Qd1 {[%emt 0:01:49] 0x0.001b83f3bf0bdp-1022s more active pieces.} Qh6 {[%emt 0:04:38]} (16... Nb8 $142) 17. Qd2 $16 {[%emt 0:01:29]} Nf6 {[%emt 0:04:09]} (17... e5 $16 {was worth a try.} 18. fxe5 (18. Rxd5 Qxf4 19. Qxf4 exf4 $16) 18... Qxd2+ 19. Rxd2 Nxe5 20. Rxd5 Nf7) 18. Be2 $18 {[%emt 0:00:42] And now g4 would win.} b6 $2 {[%emt 0:08:47]} (18... Nd7 {was called for.} 19. g4 Qf6) 19. g4 {[%emt 0:02:04][%cal Bg2g4,Bg4g5][%mdl 32]} e5 {[%emt 0:10:26]} (19... Nxg4 $142 20. Bxg4 Rf7) 20. g5 {[%emt 0:07:28]} Ne4 {[%emt 0:00:45]} 21. Rxe4 {[%emt 0:05:10][%cal Bd4e4,Be4e5,Be5f5][%mdl 32]} Qc6 {[%emt 0:00:58]} 22. Nxd5 {[%emt 0:05:57] [#] Strongly threatening Ne7+.} Kh8 {[%emt 0:04:49]} 23. h6 {[%emt 0:01:55]} Bf5 {[%emt 0:05:34]} 24. hxg7+ {[%emt 0:00:15]} Kxg7 {[%emt 0:00:09]} 25. Rxe5 {[%emt 0:00:10]} Rfe8 {[%emt 0:01:14]} 26. Rxf5 {[%emt 0:00:25] Weighted Error Value: White=0.04 (flawless) /Black=1.21} 1-0

[Event "44th Chess Olympiad Women 2022"]
[Site "Chennai"]
[Date "2022.07.29"]
[Round "1.36"]
[White "Terao, Juliana Sayumi"]
[Black "Laaribi, Mariem"]
[Result "1-0"]
[ECO "B22"]
[WhiteElo "2223"]
[BlackElo "1278"]
[Annotator "TA"]
[PlyCount "49"]
[EventDate "2022.07.29"]
[EventType "team-tourn"]
[EventCountry "IND"]
[SourceTitle "playchess.com"]
[Source "ChessBase"]
[SourceQuality "1"]
[WhiteTeam "Brazil"]
[BlackTeam "Tunisia"]
[WhiteTeamCountry "BRA"]
[BlackTeamCountry "TUN"]
[TimeControl "40/5400+30:1800+30"]

{[%evp 13,49,66,74,63,92,41,80,82,77,74,98,105,99,91,95,93,100,113,227,131,270,295,297,288,271,308,508,511,841,842,855,827,1066,912,6512,5851,29990,29983]} 1. e4 {[%emt 0:00:03]} c5 {[%emt 0:00:11]} 2. c3 {[%emt 0:00:16]} d6 {[%emt 0:00:27]} 3. d4 {[%emt 0:00:23]} cxd4 {[%emt 0:00:45]} 4. cxd4 {[%emt 0:00:08]} Nf6 {[%emt 0:00:15]} 5. Nc3 {[%emt 0:00:14]} e6 {[%emt 0:00:51]} 6. Nf3 {[%emt 0:00:35]} Be7 {[%emt 0:00:39]} 7. Bd3 {[%emt 0:01:01]} O-O {[%emt 0:00:50]} 8. O-O {[%emt 0:00:35] White is more active. B22: Sicilian: 2 c3.} Bd7 {[%emt 0:00:55]} 9. Qe2 {[%emt 0:06:16]} (9. Qc2 $16) 9... Bc6 {[%emt 0:02:12]} 10. Rd1 {[%emt 0:01:30] White is better.} Nbd7 {[%emt 0:01:18] [#]} 11. Bc2 $146 {[%emt 0:06:39] d5 is the strong threat.} ({Predecessor:} 11. d5 exd5 12. exd5 Nxd5 13. Nxd5 Bxd5 14. Bxh7+ Kxh7 15. Qd3+ Kg8 16. Qxd5 Qb6 17. b3 {1-0 (36) Alarcon Morales,E (1959)-Blanco,J Mexico City 2014}) 11... d5 {[%emt 0:04:07]} 12. e5 {[%emt 0:02:33]} Ne4 {[%emt 0:01:04]} 13. Nxe4 {[%emt 0:01:35]} dxe4 {[%emt 0:01:29]} 14. Bxe4 {[%emt 0:00:07]} Bxe4 {[%emt 0:00:38]} 15. Qxe4 {[%emt 0:00:07]} b5 {[%emt 0:01:46] [#]} (15... Qc7 $16) 16. d5 {[%emt 0:03:54]} ({White should try} 16. Qg4 $1 $18) 16... Nc5 {[%emt 0:02:41] [#] This move loses the game for Black.} (16... exd5 $16 {was called for.} 17. Qxd5 (17. Rxd5 Nc5 $16) 17... Nb6) 17. Qg4 $1 $18 {[%emt 0:03:12] Hoping for Bh6.} f5 {[%emt 0:03:51]} 18. exf6 {[%emt 0:01:29]} Bxf6 {[%emt 0:01:42]} 19. Be3 {[%emt 0:00:41]} Nb7 {[%emt 0:05:38]} (19... Na4 {is a better defense.} 20. dxe6 Qe8) 20. dxe6 {[%emt 0:00:51]} Qe7 {[%emt 0:01:38]} (20... Qe8 $142 21. Rd7 Nd8) 21. Rd7 {[%emt 0:00:22][%cal Bd1d7,Bd7b7,Bb7c7][%mdl 32]} Qe8 {[%emt 0:01:19]} 22. Rxb7 {[%emt 0:00:11]} a6 {[%emt 0:02:02]} 23. Rd1 {[%emt 0:01:48] Black must now prevent Bd4.} Qc6 {[%emt 0:01:48]} 24. Rdd7 {[%emt 0:00:56]} Kh8 {[%emt 0:03:49]} 25. Rbc7 {[%emt 0:02:12] Weighted Error Value: White=0.11 (very precise) /Black=1.01} 1-0